fUSD/lending_fUSD_20241015
["ID","MTS","AMOUNT","RATE_DAILY","PERIOD"]
[340281212,1729001449597,-463.18,0.00024989,7]
[340281213,1729001449607,-500.0,0.00024989,7]
[340281214,1729001449616,-365.65679491,0.00024989,7]
[340281215,1729001449630,-274.09452941,0.00024989,7]
[340281216,1729001449640,-557.94,0.00024989,7]
[340281217,1729001449650,-485.84,0.00024989,7]
[340281218,1729001449659,-489.98,0.00024989,7]
[340281219,1729001449669,-546.87,0.00024989,7]
[340281220,1729001449679,-500.0,0.00024989,7]
[340281221,1729001449689,-223.48219535,0.00024989,7]
[340281222,1729001449699,-500.0,0.00024989,7]
[340281223,1729001449708,-500.0,0.00024989,7]
[340281224,1729001449718,-500.0,0.00024989,7]
[340281225,1729001449727,-321.45,0.00024989,7]
[340281226,1729001449737,-500.0,0.00024989,7]
[340281227,1729001449747,-1450.29,0.00024996,7]
[340281228,1729001449757,-11732.83,0.00024996,2]
[340281229,1729001449767,-511.8,0.00024997,7]
[340281230,1729001449776,-502.95,0.00024997,7]
[340281231,1729001449786,-11844.0037682,0.00024997,2]
[340281232,1729001449796,-10012.1931756,0.00024997,2]
[340281233,1729001449807,-8180.382583,0.00024997,2]
[340281234,1729001449817,-6348.5719903,0.00024997,2]
[340281235,1729001449827,-4516.7613977,0.00024997,2]
[340281236,1729001449836,-2684.9508051,0.00024997,2]
[340281237,1729001449846,-500.0,0.00024997,7]
[340281238,1729001449855,-2823.232809,0.00024997,2]
[340281239,1729001449864,-2386.5875777,0.00024997,2]
[340281240,1729001449877,-1949.9423464,0.00024997,2]
[340281241,1729001449886,-1513.2971151,0.00024997,2]
[340281242,1729001449896,-1076.6518838,0.00024997,2]
[340281243,1729001449905,-640.0066525,0.00024997,2]
[340281244,1729001449915,-2029.9502036,0.00024997,2]
[340281245,1729001449925,-1715.9951966,0.00024997,2]
[340281246,1729001449934,-1402.0401896,0.00024997,2]
[340281247,1729001449945,-1088.0851827,0.00024997,2]
[340281248,1729001449954,-774.1301757,0.00024997,2]
[340281249,1729001449963,-460.1751688,0.00024997,2]
[340281250,1729001449973,-630.66190149,0.00024998,7]
[340281251,1729001449982,-519.50020654,0.00024998,7]
[340281252,1729001449992,-437.7529772,0.00024998,7]
[340281253,1729001450001,-525.57005067,0.00024998,7]
[340281254,1729001450011,-500.0,0.00024998,7]
[340281255,1729001450020,-568.14752961,0.00024998,7]
[340281256,1729001450029,-500.0,0.00024998,7]
[340281257,1729001450039,-500.0,0.00024998,7]
[340281258,1729001450049,-403.84970405,0.00024998,7]
[340281259,1729001450058,-229.96,0.00024998,7]
[340281260,1729001450069,-459.8,0.00024998,7]
[340281261,1729001450079,-500.0,0.00024998,7]
[340281262,1729001450088,-369.62,0.00024998,7]
[340281263,1729001450097,-368.76,0.00024998,7]
[340281264,1729001450106,-500.0,0.00024998,7]
[340281265,1729001450116,-374.22749249,0.00024998,7]
[340281266,1729001450128,-153.02883284,0.00024998,7]
[340281267,1729001450137,-226.84844775,0.00024998,7]
[340281268,1729001450147,-502.53771783,0.00024998,7]
[340281269,1729001450155,-439.47871326,0.00024998,7]
[340281270,1729001450165,-500.0,0.00024998,7]
[340281271,1729001450174,-348.12704372,0.00024998,7]
[340281272,1729001450183,-500.0,0.00024998,7]
[340281273,1729001450192,-500.0,0.00024998,7]
[340281274,1729001450202,-183.21,0.00024998,7]
[340281275,1729001450211,-431.81807624,0.00024998,7]
[340281276,1729001450220,-241.92887564,0.00024998,7]
[340281277,1729001450230,-282.66672439,0.00024998,7]
[340281278,1729001450239,-555.77,0.00024998,7]
[340281279,1729001450249,-617.99803259,0.00024998,7]
[340281280,1729001450258,-400.11797457,0.00024998,7]
[340281281,1729001450267,-485.49,0.00024998,7]
[340281282,1729001450277,-196.47361573,0.00024998,7]
[340281283,1729001450286,-500.0,0.00024998,7]
[340281284,1729001450296,-500.0,0.00024998,7]
[340281285,1729001450306,-230.05,0.00024998,7]
[340281286,1729001450315,-250.93,0.00024998,7]
[340281287,1729001450325,-500.0,0.00024998,7]
[340281288,1729001450337,-500.0,0.00024998,7]
[340281289,1729001450348,-308.84,0.00024998,7]
[340281290,1729001450357,-369.59474742,0.00024998,7]
[340281291,1729001450367,-610.03194081,0.00024998,7]
[340281292,1729001450380,-402.9,0.00024998,7]
[340281293,1729001450390,-500.0,0.00024998,7]
[340281294,1729001450399,-500.0,0.00024998,7]
[340281295,1729001450408,-176.15,0.00024998,7]
[340281296,1729001450419,-224.21,0.00024998,7]
[340281297,1729001450429,-500.0,0.00024998,7]
[340281298,1729001450438,-211.86,0.00024998,7]
[340281299,1729001450447,-378.36,0.00024998,7]
[340281300,1729001450456,-156.21171997,0.00024998,7]
[340281301,1729001450465,-432.05955197,0.00024998,7]
[340281302,1729001450474,-353.34749721,0.00024998,7]
[340281303,1729001450483,-498.26140949,0.00024998,7]
[340281304,1729001450493,-500.0,0.00024998,7]
[340281305,1729001450502,-289.54527406,0.00024998,7]
[340281306,1729001450512,-202.92,0.00024998,7]
[340281307,1729001450523,-150.0,0.00024998,7]
[340281308,1729001450532,-150.0,0.00024998,7]
[340281309,1729001450542,-515.68379648,0.00024998,7]
[340281310,1729001450553,-368.45,0.00024998,7]
[340281311,1729001450564,-442.35,0.00024998,7]
[340281312,1729001450574,-384.5865652,0.00024998,7]
[340281313,1729001450583,-304.24937099,0.00024998,7]
[340281314,1729001450592,-349.73952939,0.00024998,7]
[340281327,1729001450716,-500.0,0.00024988,7]
[340281328,1729001450726,-216.25047061,0.00024998,7]
[340281341,1729001450843,-182.56156798,0.00024998,7]
[340281343,1729001450853,-206.40083363,0.00024998,7]
[340281345,1729001450862,-333.03,0.00024998,7]
[340281347,1729001450874,-212.72,0.00024998,7]
[340281349,1729001450883,-156.11,0.00024998,7]
[340281351,1729001450892,-246.88,0.00024998,7]
[340281353,1729001450901,-526.11775177,0.00024998,7]
[340281354,1729001450910,-235.27,0.00024998,7]
[340281356,1729001450920,-157.45205728,0.00024998,7]
[340281358,1729001450930,-280.76,0.00024998,7]
[340281360,1729001450941,-390.78280414,0.00024998,7]
[340281362,1729001450951,-511.37426604,0.00024998,7]
[340281364,1729001450961,-309.02965275,0.00024998,7]
[340281366,1729001450971,-295.88281057,0.00024998,7]
[340281368,1729001450980,-500.0,0.00024998,7]
[340281370,1729001450990,-431.55,0.00024998,7]
[340281372,1729001451001,-365.19905767,0.00024998,7]
[340281374,1729001451013,-134.80094233,0.00024998,7]
[340281376,1729001451022,-419.11954759,0.00024998,7]
[340281378,1729001451031,-21.39864842,0.00024998,7]
[340281380,1729001451043,-478.60135158,0.00024998,7]
[340281382,1729001451052,-150.0,0.00024998,2]
[340281384,1729001451063,-378.17769602,0.00024998,7]
[340281386,1729001451073,-381.8,0.00024998,7]
[340281387,1729001451082,-435.4720721,0.00024998,7]
[340281389,1729001451091,-437.60231464,0.00024998,7]
[340281391,1729001451101,-389.77,0.00024998,7]
[340281393,1729001451110,-184.16068327,0.00024998,7]
[340281394,1729001451120,-453.43590704,0.00024998,7]
[340281395,1729001451132,-543.57,0.00024998,7]
[340281396,1729001451141,-632.91,0.00024998,7]
[340281397,1729001451150,-294.33,0.00024998,7]
[340281398,1729001451159,-632.91,0.00024998,7]
[340281399,1729001451169,-471.55071763,0.00024998,7]
[340281400,1729001451178,-410.42956877,0.00024998,7]
[340281401,1729001451187,-208.3,0.00024998,7]
[340281402,1729001451196,-500.0,0.00024998,7]
[340281403,1729001451205,-330.42,0.00024998,7]
[340281404,1729001451214,-154.24321827,0.00024998,7]
[340281405,1729001451224,-480.12,0.00024998,7]
[340281406,1729001451233,-156.55064725,0.00024998,7]
[340281407,1729001451242,-203.01999932,0.00024998,7]
[340281408,1729001451251,-288.95396015,0.00024998,7]
[340281409,1729001451261,-170.48863991,0.00024998,7]
[340281410,1729001451270,-294.19,0.00024998,7]
[340281411,1729001451279,-500.0,0.00024998,7]
[340281412,1729001451289,-500.0,0.00024998,7]
[340281413,1729001451298,-245.15347974,0.00024998,7]
[340281414,1729001451307,-479.11,0.00024998,7]
[340281415,1729001451317,-521.03,0.00024998,7]
[340281416,1729001451325,-1450.29,0.00024998,7]
[340281417,1729001451335,-487.21,0.00024998,7]
[340281418,1729001451348,-502.02,0.00024998,7]
[340281419,1729001451357,-181.15,0.00024998,7]
[340281420,1729001451367,-500.0,0.00024998,7]
[340281421,1729001451380,-557.94,0.00024998,7]
[340281422,1729001451389,-557.94,0.00024998,7]
[340281423,1729001451399,-307.93,0.00024998,7]
[340281424,1729001451409,-315.61897192,0.00024998,7]
[340281425,1729001451419,-195.82,0.00024998,7]
[340281426,1729001451429,-172.78039237,0.00024998,7]
[340281427,1729001451439,-11732.83,0.00024998,2]
[340281428,1729001451449,-152.9108109,0.00024998,7]
[340281429,1729001451458,-348.88902504,0.00024999,10]
[340281430,1729001451467,-150.0,0.00024999,30]
[340281431,1729001451476,-165.70802363,0.00024999,7]
[340281432,1729001451484,-306.65,0.00024999,7]
[340281433,1729001451494,-155.52,0.00024999,7]
[340281434,1729001451503,-272.74,0.00024999,7]
[340281435,1729001451513,-465.78,0.00024999,7]
[340281436,1729001451523,-500.0,0.00024999,7]
[340281437,1729001451532,-392.91,0.00024999,7]
[340281438,1729001451541,-380.83203357,0.00024999,7]
[340281439,1729001451550,-280.08,0.00024999,7]
[340281440,1729001451560,-308.66,0.00024999,7]
[340281441,1729001451569,-561.61,0.00024999,7]
[340281442,1729001451579,-303.52328369,0.00024999,7]
[340281443,1729001451588,-405.57,0.00024999,7]
[340281444,1729001451598,-500.0,0.00024999,7]
[340281445,1729001451607,-233.21,0.00024999,7]
[340281446,1729001451617,-500.0,0.00024999,7]
[340281447,1729001451628,-306.31,0.00024999,7]
[340281448,1729001451637,-590.06553721,0.00024999,7]
[340281449,1729001451646,-500.0,0.00024999,7]
[340281450,1729001451655,-500.0,0.00024999,7]
[340281451,1729001451665,-500.0,0.00024999,7]
[340281452,1729001451675,-500.0,0.00024999,7]
[340281453,1729001451684,-500.0,0.00024999,7]
[340281454,1729001451693,-500.0,0.00024999,7]
[340281455,1729001451702,-500.0,0.00024999,7]
[340281456,1729001451712,-500.0,0.00024999,7]
[340281457,1729001451721,-500.0,0.00024999,7]
[340281458,1729001451730,-500.0,0.00024999,7]
[340281459,1729001451739,-500.0,0.00024999,7]
[340281460,1729001451749,-500.0,0.00024999,7]
[340281461,1729001451758,-500.0,0.00024999,7]
[340281462,1729001451768,-500.0,0.00024999,7]
[340281463,1729001451777,-500.0,0.00024999,7]
[340281464,1729001451786,-500.0,0.00024999,7]
[340281465,1729001451796,-500.0,0.00024999,7]
[340281466,1729001451805,-500.0,0.00024999,7]
[340281467,1729001451814,-500.0,0.00024999,7]
[340281468,1729001451824,-305.64590598,0.00024999,7]
[340281469,1729001451833,-500.0,0.00024999,7]
[340281470,1729001451843,-187.35,0.00024999,7]
[340281471,1729001451852,-321.45,0.00024999,7]
[340281472,1729001451861,-1029.1,0.00024999,7]
[340281473,1729001451870,-1029.1,0.00024999,7]
[340281474,1729001451882,-1029.1,0.00024999,7]
[340281475,1729001451892,-1029.1,0.00024999,7]
[340281476,1729001451901,-1029.1,0.00024999,7]
[340281477,1729001451910,-1029.1,0.00024999,7]
[340281478,1729001451920,-1029.1,0.00024999,7]
[340281479,1729001451929,-1029.1,0.00024999,7]
[340281480,1729001451939,-150.0,0.00024999,7]
[340281481,1729001451948,-1029.1,0.00024999,7]
[340281482,1729001451958,-150.0,0.00024999,7]
[340281483,1729001451968,-150.0,0.00024999,7]
[340281484,1729001451977,-1029.1,0.00024999,7]
[340281485,1729001451986,-150.0,0.00024999,7]
[340281486,1729001451995,-1029.1,0.00024999,7]
[340281487,1729001452003,-150.0,0.00024999,7]
[340281488,1729001452012,-1029.1,0.00024999,7]
[340281489,1729001452022,-186.92,0.00024999,7]
[340281490,1729001452031,-1029.1,0.00024999,7]
[340281491,1729001452041,-1029.1,0.00024999,7]
[340281492,1729001452050,-1029.1,0.00024999,7]
[340281493,1729001452059,-1029.1,0.00024999,7]
[340281494,1729001452069,-1029.1,0.00024999,7]
[340281495,1729001452078,-1029.1,0.00024999,7]
[340281496,1729001452087,-1029.1,0.00024999,7]
[340281497,1729001452096,-1029.1,0.00024999,7]
[340281498,1729001452105,-1029.1,0.00024999,7]
[340281499,1729001452114,-1029.1,0.00024999,7]
[340281500,1729001452124,-1029.23681519,0.00024999,7]
[340281501,1729001452133,-624.78959566,0.00024999,7]
[340281502,1729001452142,-219.81125611,0.00024999,7]
[340281503,1729001452152,-500.0,0.00024999,7]
[340281504,1729001452162,-500.0,0.00024999,7]
[340281505,1729001452171,-500.0,0.00024999,7]
[340281506,1729001452180,-500.0,0.00024999,7]
[340281507,1729001452190,-433.2887151,0.00024999,7]
[340281508,1729001452199,-218.60701484,0.00024999,7]
[340281509,1729001452209,-234.91031212,0.00024999,7]
[340281510,1729001452218,-192.87928485,0.00024999,7]
[340281511,1729001452227,-254.87,0.00024999,7]
[340281512,1729001452237,-185.33,0.00024999,7]
[340281513,1729001452246,-500.0,0.00024999,7]
[340281514,1729001452256,-500.0,0.00024999,7]
[340281515,1729001452265,-500.0,0.00024999,7]
[340281516,1729001452275,-500.0,0.00024999,7]
[340281517,1729001452284,-500.0,0.00024999,7]
[340281518,1729001452294,-500.0,0.00024999,7]
[340281519,1729001452303,-500.0,0.00024999,7]
[340281520,1729001452313,-500.0,0.00024999,7]
[340281521,1729001452322,-500.0,0.00024999,7]
[340281522,1729001452332,-500.0,0.00024999,7]
[340281523,1729001452344,-500.80573036,0.00024999,7]
[340281524,1729001452353,-632.91,0.00024999,7]
[340281525,1729001452362,-632.91,0.00024999,7]
[340281526,1729001452373,-632.91,0.00024999,7]
[340281527,1729001452383,-632.91,0.00024999,7]
[340281528,1729001452393,-632.91,0.00024999,7]
[340281529,1729001452403,-632.91,0.00024999,7]
[340281530,1729001452413,-632.91,0.00024999,7]
[340281531,1729001452423,-632.91,0.00024999,7]
[340281532,1729001452433,-632.91,0.00024999,7]
[340281533,1729001452443,-632.91,0.00024999,7]
[340281534,1729001452453,-632.91,0.00024999,7]
[340281535,1729001452462,-632.91,0.00024999,7]
[340281536,1729001452472,-632.91,0.00024999,7]
[340281537,1729001452482,-632.91,0.00024999,7]
[340281538,1729001452491,-632.91,0.00024999,7]
[340281539,1729001452500,-632.91,0.00024999,7]
[340281540,1729001452510,-632.91,0.00024999,7]
[340281541,1729001452519,-632.91,0.00024999,7]
[340281542,1729001452530,-632.91,0.00024999,7]
[340281543,1729001452542,-633.00459133,0.00024999,7]
[340281544,1729001452552,-500.0,0.00024999,7]
[340281545,1729001452562,-500.0,0.00024999,7]
[340281546,1729001452571,-617.64665262,0.00024999,7]
[340281547,1729001452580,-1450.29,0.00024999,7]
[340281548,1729001452590,-1450.29,0.00024999,7]
[340281549,1729001452600,-1450.29,0.00024999,7]
[340281550,1729001452611,-1450.29,0.00024999,7]
[340281551,1729001452624,-1450.29,0.00024999,7]
[340281552,1729001452633,-1450.29,0.00024999,7]
[340281553,1729001452642,-1450.33783307,0.00024999,7]
[340281554,1729001452651,-500.0,0.00024999,7]
[340281555,1729001452661,-500.0,0.00024999,7]
[340281556,1729001452670,-500.0,0.00024999,7]
[340281557,1729001452679,-500.0,0.00024999,7]
[340281558,1729001452689,-500.0,0.00024999,7]
[340281559,1729001452699,-500.0,0.00024999,7]
[340281560,1729001452709,-500.0,0.00024999,7]
[340281561,1729001452718,-557.94,0.00024999,7]
[340281562,1729001452727,-500.0,0.00024999,7]
[340281563,1729001452736,-557.94,0.00024999,7]
[340281564,1729001452746,-500.0,0.00024999,7]
[340281565,1729001452782,-557.94,0.00024999,7]
[340281566,1729001452791,-500.0,0.00024999,7]
[340281567,1729001452800,-557.94,0.00024999,7]
[340281568,1729001452810,-500.0,0.00024999,7]
[340281569,1729001452820,-557.94,0.00024999,7]
[340281570,1729001452830,-500.0,0.00024999,7]
[340281571,1729001452842,-557.94,0.00024999,7]
[340281572,1729001452853,-500.0,0.00024999,7]
[340281573,1729001452862,-557.94,0.00024999,7]
[340281574,1729001452874,-500.0,0.00024999,7]
[340281575,1729001452884,-500.0,0.00024999,7]
[340281576,1729001452895,-557.94,0.00024999,7]
[340281577,1729001452904,-500.0,0.00024999,7]
[340281578,1729001452913,-557.94,0.00024999,7]
[340281579,1729001452923,-557.94,0.00024999,7]
[340281580,1729001452932,-500.0,0.00024999,7]
[340281581,1729001452942,-557.94,0.00024999,7]
[340281582,1729001452951,-500.0,0.00024999,7]
[340281583,1729001452961,-557.94,0.00024999,7]
[340281584,1729001452971,-500.0,0.00024999,7]
[340281585,1729001452981,-500.0,0.00024999,7]
[340281586,1729001452991,-557.94,0.00024999,7]
[340281587,1729001453000,-293.55866715,0.00024999,7]
[340281588,1729001453010,-557.94,0.00024999,7]
[340281589,1729001453019,-557.94,0.00024999,7]
[340281590,1729001453029,-557.94,0.00024999,7]
[340281591,1729001453038,-557.94,0.00024999,7]
[340281592,1729001453047,-557.94,0.00024999,7]
[340281593,1729001453056,-557.94,0.00024999,7]
[340281594,1729001453066,-558.00977992,0.00024999,7]
[340281595,1729001453075,-11732.83,0.00024999,2]
[340281596,1729001453085,-11732.83,0.00024999,2]
[340281597,1729001453094,-11732.83,0.00024999,2]
[340281598,1729001453104,-11732.83,0.00024999,2]
[340281599,1729001453113,-11732.83,0.00024999,2]
[340281600,1729001453126,-11732.83,0.00024999,2]
[340281601,1729001453141,-11733.02013127,0.00024999,2]
[340281602,1729001453150,-50000.0,0.00025,9]
[340281603,1729001453159,-50000.0,0.00025,10]
[340281604,1729001453168,-50000.0,0.00025,11]
[340281605,1729001453177,-50000.0,0.00025,12]
[340281606,1729001453186,-50000.0,0.00025,13]
[340281607,1729001453195,-124108.63903496,0.00025,6]
[340281608,1729001453204,-807178.768949,0.00025,3]
[340281609,1729001453246,-2865.81931308,0.00025,3]
[340281610,1729001453260,-500.0,0.00024931,7]
[340281611,1729001453270,-99165.23317772,0.00025,3]
[340281612,1729001453281,-13568.50261232,0.00025,3]
[340281613,1729001453292,-365.54706895,0.00025,3]
[340281614,1729001453302,-1742501.15702441,0.00025,3]
[340281615,1729001453313,-1382.8694537,0.00025,3]
[340281616,1729001453324,-5893.89319982,0.00025,3]
[340281617,1729001453338,-114758.5360473,0.00025,3]
[340281618,1729001453351,-7470.94300807,0.00025,3]
[340281619,1729001453362,-6710.19359999,0.00025,3]
[340281620,1729001453522,-510.72156263,0.00023973,2]
[340281621,1729001453533,-500.0,0.00024931,7]
[340281622,1729001453542,-125.42727737,0.00024931,7]
[340281623,1729001453554,-374.57272263,0.00024931,7]
[340281624,1729001453564,-290.3513003,0.00024931,7]
[340281625,1729001453575,-209.6486997,0.00024931,7]
[340281626,1729001453586,-500.0,0.00024931,7]
[340281627,1729001453595,-108.90130446,0.00024978,3]
[340281628,1729001453606,-187.15869554,0.00024978,3]
[340281629,1729001453616,-500.0,0.00024988,7]
[340281630,1729001453628,-293.08725038,0.00024988,7]
[340281631,1729001453640,-206.91274962,0.00024988,7]
[340281632,1729001453650,-500.0,0.00024989,7]
[340281633,1729001453659,-500.0,0.00024989,7]
[340281634,1729001453669,-500.0,0.00024989,7]
[340281635,1729001453678,-500.0,0.00024998,7]
[340281636,1729001453688,-500.0,0.00024998,7]
[340281637,1729001453697,-500.0,0.00024998,7]
[340281638,1729001453707,-500.0,0.00024998,7]
[340281639,1729001453717,-500.0,0.00024998,7]
[340281640,1729001453726,-375.0,0.00024999,2]
[340281641,1729001453736,-3239.94302904,0.00024999,2]
[340281642,1729001453746,-9347.75051587,0.00025,3]
[340281643,1729001453758,-6657.6305184,0.00025,3]
[340281644,1729001453770,-77422.53308057,0.00025,3]
[340281645,1729001453781,-300150.28272309,0.00025,3]
[340281646,1729001453793,-416.52325546,0.00025,3]
[340281647,1729001453902,-1220422.41090883,0.00025,3]
[340281648,1729001453916,-563983.82732596,0.00025,3]
[340281649,1729001453928,-271.02421046,0.00025,3]
[340281650,1729001453954,-279.27019312,0.00024931,7]
[340281651,1729001453966,-220.72980688,0.00024931,7]
[340281652,1729001453976,-500.0,0.00024999,7]
[340281653,1729001453985,-9081.92319374,0.00025,3]
[340281654,1729001453997,-2832.0099074,0.00025,3]
[340281655,1729001454009,-592.24144725,0.00025,3]
[340281656,1729001454023,-500.0,0.00024931,7]
[340281657,1729001454033,-92407.59464401,0.00025,3]
[340281658,1729001454045,-377.0320002,0.00025,3]
[340281659,1729001454056,-1340.44999999,0.00025,3]
[340281660,1729001454292,-3044.205394,0.00025,3]
[340281661,1729001454550,-1787.70249,0.00021917,2]
[340281662,1729001454560,-500.0,0.00024931,7]
[340281663,1729001454570,-500.0,0.00024931,7]
[340281664,1729001454580,-500.0,0.00024931,7]
[340281665,1729001454590,-500.0,0.00024931,7]
[340281666,1729001454600,-500.0,0.00024931,7]
[340281667,1729001454610,-500.0,0.00024931,7]
[340281668,1729001454619,-212.29751,0.00024931,7]
[340281669,1729001454636,-287.70249,0.00024931,7]
[340281670,1729001454646,-152.55968565,0.00024931,7]
[340281671,1729001454727,-347.44031435,0.00024931,7]
[340281672,1729001454737,-500.0,0.00024931,7]
[340281673,1729001454746,-500.0,0.00024931,7]
[340281674,1729001454756,-500.0,0.00024931,7]
[340281675,1729001454766,-500.0,0.00024931,7]
[340281676,1729001454776,-500.0,0.00024931,7]
[340281677,1729001454786,-500.0,0.00024931,7]
[340281678,1729001454795,-500.0,0.00024931,7]
[340281679,1729001454805,-500.0,0.00024931,7]
[340281680,1729001454814,-500.0,0.00024931,7]
[340281681,1729001454824,-500.0,0.00024931,7]
[340281682,1729001454834,-500.0,0.00024931,7]
[340281683,1729001454843,-500.0,0.00024931,7]
[340281684,1729001454853,-374.12448265,0.00024931,7]
[340281685,1729001454865,-125.87551735,0.00024931,7]
[340281686,1729001454876,-500.0,0.00024931,7]
[340281687,1729001454886,-500.0,0.00024931,7]
[340281688,1729001454896,-500.0,0.00024931,7]
[340281689,1729001454906,-500.0,0.00024931,7]
[340281690,1729001454915,-500.0,0.00024931,7]
[340281691,1729001454925,-500.0,0.00024931,7]
[340281692,1729001454935,-257.92858264,0.00024931,7]
[340281693,1729001454951,-242.07141736,0.00024931,7]
[340281694,1729001454962,-258.77491394,0.00024931,7]
[340281695,1729001454973,-296.7490917,0.00024931,7]
[340281696,1729001454983,-500.0,0.00024931,7]
[340281697,1729001454993,-500.0,0.00024931,7]
[340281698,1729001455003,-500.0,0.00024931,7]
[340281699,1729001455012,-500.0,0.00024931,7]
[340281700,1729001455024,-500.0,0.00024931,7]
[340281701,1729001455034,-223.08,0.00024931,7]
[340281702,1729001455044,-500.0,0.00024931,7]
[340281703,1729001455054,-500.0,0.00024931,7]
[340281704,1729001455065,-611.02,0.00024931,7]
[340281705,1729001455075,-500.0,0.00024987,7]
[340281706,1729001455085,-500.0,0.00024988,7]
[340281707,1729001455094,-500.0,0.00024988,7]
[340281708,1729001455104,-500.0,0.00024988,7]
[340281709,1729001455114,-500.0,0.00024989,7]
[340281710,1729001455125,-500.0,0.00024996,7]
[340281711,1729001455134,-500.0,0.00024998,7]
[340281712,1729001455144,-500.0,0.00024998,7]
[340281713,1729001455154,-92.24852318,0.00024999,7]
[340281714,1729001455166,-407.75147682,0.00024999,7]
[340281715,1729001455176,-500.0,0.00024999,7]
[340281716,1729001455185,-173.48,0.00024999,7]
[340281717,1729001455195,-500.0,0.00024999,7]
[340281718,1729001455205,-500.0,0.00024999,7]
[340281719,1729001455214,-500.0,0.00024999,7]
[340281720,1729001455224,-500.0,0.00024999,7]
[340281721,1729001455233,-500.0,0.00024999,7]
[340281722,1729001455243,-500.0,0.00024999,7]
[340281723,1729001455253,-500.0,0.00024999,7]
[340281724,1729001455263,-6910.49869856,0.00025,3]
[340281725,1729001455447,-398.27299999,0.00024989,7]
[340281726,1729001455459,-101.72700001,0.00024989,7]
[340281727,1729001455468,-1817.32618734,0.00025,3]
[340281728,1729001455480,-7201.70000002,0.00025,3]
[340281729,1729001455492,-2154.95,0.00025,3]
[340281730,1729001455503,-1470.0,0.00025,3]
[340281731,1729001455523,-2424.10060523,0.00024997,2]
[340281732,1729001592859,1722.106507,0.00026997,120]
[340281733,1729001624241,550.0,0.0001,2]
[340281734,1729001625375,600.0,0.00012,2]
[340281735,1729001655937,158.25,0.00010959,2]
[340281736,1729001680664,2000.0,0.00023343,120]
[340281737,1729001740382,421.05,0.00025882,120]
[340281739,1729002225771,500.0,0.00024988,120]
[340281740,1729002226043,500.0,0.00024989,120]
[340281741,1729002226438,500.0,0.00024998,120]
[340281742,1729002226758,500.0,0.00024998,120]
[340281743,1729002227083,500.0,0.00024999,120]
[340281744,1729002227406,500.0,0.00024999,120]
[340281745,1729002227761,500.0,0.00024999,120]
[340281746,1729002228076,538.16126392,0.00024999,120]
[340281747,1729002247805,156.71,0.00010959,2]
[340281748,1729002308740,25754.44,0.00011,2]
[340281751,1729002383928,-260.0,0.0001089,2]
[340281752,1729002383950,-246.72,0.00010959,2]
[340281753,1729002383972,-205.6,0.00010959,2]
[340281754,1729002383994,-171.33,0.00010959,2]
[340281755,1729002384015,-500.0,0.00010973,2]
[340281756,1729002384043,-74946.35,0.00011,2]
[340281757,1729002423944,150.5,0.0001379,30]
[340281758,1729002424391,150.5,0.0001378,30]
[340281759,1729002424856,150.5,0.0001377,30]
[340281760,1729002438617,172.24,0.00026651,120]
[340281798,1729002635243,-335.92939992,0.000109,2]
[340281799,1729002635254,-348.89010204,0.000109,2]
[340281800,1729002635266,-642.86731855,0.000109,2]